[Event "*** Titled Tuesday Blitz"]
[Site "Chess.com"]
[Date "2021.03.30"]
[Round "2"]
[White "Alopekos"]
[Black "HrvojeZagreb"]
[Result "0-1"]
[WhiteElo "2412"]
[BlackElo "2221"]
[TimeControl "180+1"]
[EndTime "10:18:36 PDT"]
[Termination "HrvojeZagreb won on time"]

1. e4 {[%clk 0:03:00.9]} 1... e6 {[%clk 0:02:59.7]} 2. d4 {[%clk 0:03:00.4]}
2... d5 {[%clk 0:03:00.2]} 3. Nc3 {[%clk 0:02:59.5]} 3... dxe4 {[%clk
0:03:00.2]} 4. Nxe4 {[%clk 0:02:59.3]} 4... Nd7 {[%clk 0:03:00.8]} 5. Bd3 {[%clk
0:02:58.7]} 5... Ngf6 {[%clk 0:03:01]} 6. Qe2 {[%clk 0:02:59.1]} 6... Nxe4
{[%clk 0:03:00.4]} 7. Bxe4 {[%clk 0:03:00]} 7... Bd6 {[%clk 0:02:52.9]} 8. Nf3
{[%clk 0:02:56.5]} 8... c5 {[%clk 0:02:37.5]} 9. Bg5 {[%clk 0:01:49]} 9... Qb6
{[%clk 0:02:23.8]} 10. O-O-O {[%clk 0:01:47.2]} 10... O-O {[%clk 0:02:06]} 11.
d5 {[%clk 0:01:44.2]} 11... Ne5 {[%clk 0:01:48.4]} 12. Nxe5 {[%clk 0:01:38.3]}
12... Bxe5 {[%clk 0:01:48.6]} 13. Bxh7+ {[%clk 0:01:38.3]} 13... Kxh7 {[%clk
0:01:49.5]} 14. Qxe5 {[%clk 0:01:38.6]} 14... exd5 {[%clk 0:01:40.3]} 15. Rxd5
{[%clk 0:01:02.3]} 15... Be6 {[%clk 0:01:02.9]} 16. Rxc5 {[%clk 0:00:59.3]}
16... Rac8 {[%clk 0:00:52.4]} 17. Be3 {[%clk 0:00:57]} 17... Qa6 {[%clk
0:00:30.6]} 18. a3 {[%clk 0:00:53.6]} 18... Rfe8 {[%clk 0:00:30.1]} 19. Rxc8
{[%clk 0:00:29]} 19... Rxc8 {[%clk 0:00:29.2]} 20. Bd4 {[%clk 0:00:29.4]} 20...
f6 {[%clk 0:00:28.8]} 21. Qe4+ {[%clk 0:00:23.9]} 21... Kg8 {[%clk 0:00:28.1]}
22. Re1 {[%clk 0:00:16.4]} 22... Bf7 {[%clk 0:00:24.6]} 23. Bc3 {[%clk
0:00:10.7]} 23... Rxc3 {[%clk 0:00:20.7]} 24. bxc3 {[%clk 0:00:10.1]} 24...
Qxa3+ {[%clk 0:00:20.6]} 25. Kd2 {[%clk 0:00:10.7]} 25... Qd6+ {[%clk
0:00:19.8]} 26. Qd4 {[%clk 0:00:10.2]} 26... Qxh2 {[%clk 0:00:19.8]} 27. Qd8+
{[%clk 0:00:02.2]} 27... Kh7 {[%clk 0:00:19.4]} 28. Qd3+ {[%clk 0:00:02.8]}
28... Kg8 {[%clk 0:00:18.6]} 29. Qf3 {[%clk 0:00:02]} 29... Qh6+ {[%clk
0:00:17.4]} 30. Re3 {[%clk 0:00:02.4]} 30... Qg5 {[%clk 0:00:16.4]} 31. Qxb7
{[%clk 0:00:02.2]} 31... a5 {[%clk 0:00:13.1]} 32. Qa8+ {[%clk 0:00:02.4]} 32...
Kh7 {[%clk 0:00:12.6]} 33. Qe4+ {[%clk 0:00:03]} 33... g6 {[%clk 0:00:11.4]} 34.
f4 {[%clk 0:00:02.2]} 34... Qb5 {[%clk 0:00:09.5]} 35. Qd3 {[%clk 0:00:01.7]}
35... Qb6 {[%clk 0:00:06.1]} 36. Rh3+ {[%clk 0:00:01.7]} 36... Kg7 {[%clk
0:00:06.2]} 37. Qd4 {[%clk 0:00:02.6]} 37... Qc6 {[%clk 0:00:05.9]} 38. f5
{[%clk 0:00:02.9]} 38... Qxg2+ {[%clk 0:00:05.6]} 39. Kc1 {[%clk 0:00:03.3]}
39... Qxh3 {[%clk 0:00:05.9]} 40. fxg6 {[%clk 0:00:04.2]} 40... Kxg6 {[%clk
0:00:06]} 41. Qe4+ {[%clk 0:00:03.3]} 41... Kg7 {[%clk 0:00:06.1]} 42. Qb7
{[%clk 0:00:02]} 42... Qh6+ {[%clk 0:00:07]} 43. Kb2 {[%clk 0:00:01.6]} 43...
Qf4 {[%clk 0:00:07]} 44. Qa7 {[%clk 0:00:01.9]} 44... a4 {[%clk 0:00:07.4]} 45.
Qg1+ {[%clk 0:00:01.9]} 45... Bg6 {[%clk 0:00:07.2]} 46. Qa7+ {[%clk 0:00:02.8]}
46... Bf7 {[%clk 0:00:07.7]} 47. Qg1+ {[%clk 0:00:03]} 47... Kf8 {[%clk
0:00:08.2]} 48. Qa7 {[%clk 0:00:03.9]} 48... Be8 {[%clk 0:00:08.7]} 49. Qc5+
{[%clk 0:00:04.1]} 49... Kf7 {[%clk 0:00:08.2]} 50. Qa7+ {[%clk 0:00:05]} 50...
Kg6 {[%clk 0:00:08.2]} 51. Qa8 {[%clk 0:00:05]} 51... Qe5 {[%clk 0:00:06.6]} 52.
Qg2+ {[%clk 0:00:04.8]} 52... Kf7 {[%clk 0:00:06.5]} 53. Qb7+ {[%clk 0:00:05]}
53... Qe7 {[%clk 0:00:06.2]} 54. Qd5+ {[%clk 0:00:05.6]} 54... Qe6 {[%clk
0:00:06]} 55. Qb7+ {[%clk 0:00:05]} 55... Kf8 {[%clk 0:00:06.3]} 56. Qb4+ {[%clk
0:00:04.6]} 56... Qe7 {[%clk 0:00:06.5]} 57. Qf4 {[%clk 0:00:04.3]} 57... a3+
{[%clk 0:00:06.5]} 58. Ka1 {[%clk 0:00:04]} 58... Bf7 {[%clk 0:00:06.2]} 59.
Qb8+ {[%clk 0:00:02.5]} 59... Kg7 {[%clk 0:00:06.6]} 60. Qg3+ {[%clk 0:00:02.5]}
60... Bg6 {[%clk 0:00:06.8]} 61. Qf2 {[%clk 0:00:01.2]} 61... Qb7 {[%clk
0:00:05.1]} 0-1

[Event "*** Titled Tuesday Blitz"]
[Site "Chess.com"]
[Date "2021.03.30"]
[Round "2"]
[White "Rytenko_V"]
[Black "ShapkinAnatoliy"]
[Result "1/2-1/2"]
[WhiteElo "2402"]
[BlackElo "2654"]
[TimeControl "180+1"]
[EndTime "10:18:37 PDT"]
[Termination "Game drawn by stalemate"]

1. d4 {[%clk 0:03:00.9]} 1... Nf6 {[%clk 0:02:55.8]} 2. c4 {[%clk 0:03:00.9]}
2... g6 {[%clk 0:02:55.7]} 3. Nc3 {[%clk 0:03:01.1]} 3... d5 {[%clk 0:02:56.3]}
4. Bg5 {[%clk 0:03:00]} 4... Bg7 {[%clk 0:02:55.9]} 5. e3 {[%clk 0:02:59.9]}
5... O-O {[%clk 0:02:19.5]} 6. Nf3 {[%clk 0:02:59.2]} 6... Ne4 {[%clk
0:02:13.3]} 7. Nxe4 {[%clk 0:02:53.9]} 7... dxe4 {[%clk 0:02:12.3]} 8. Nd2
{[%clk 0:02:54.5]} 8... c5 {[%clk 0:02:12.4]} 9. Nb3 {[%clk 0:02:26]} 9... cxd4
{[%clk 0:02:08.8]} 10. exd4 {[%clk 0:02:21.1]} 10... Nc6 {[%clk 0:02:09.3]} 11.
Be3 {[%clk 0:02:20.4]} 11... a5 {[%clk 0:01:57.6]} 12. a4 {[%clk 0:02:11.9]}
12... Nb4 {[%clk 0:01:45.4]} 13. Be2 {[%clk 0:02:08]} 13... b6 {[%clk
0:01:37.4]} 14. O-O {[%clk 0:02:06.4]} 14... f5 {[%clk 0:01:35.2]} 15. Qd2
{[%clk 0:01:53.2]} 15... Ba6 {[%clk 0:01:17.6]} 16. Rac1 {[%clk 0:01:45.3]}
16... Rc8 {[%clk 0:01:17.7]} 17. c5 {[%clk 0:01:32.6]} 17... bxc5 {[%clk
0:01:04]} 18. Bxa6 {[%clk 0:01:29.4]} 18... Nxa6 {[%clk 0:01:04.1]} 19. Nxc5
{[%clk 0:01:17.8]} 19... Nxc5 {[%clk 0:00:57.9]} 20. Rxc5 {[%clk 0:01:17]} 20...
Rxc5 {[%clk 0:00:54.6]} 21. dxc5 {[%clk 0:01:17.9]} 21... Qxd2 {[%clk
0:00:54.2]} 22. Bxd2 {[%clk 0:01:18.1]} 22... Bxb2 {[%clk 0:00:54.2]} 23. Bxa5
{[%clk 0:01:17.6]} 23... Ra8 {[%clk 0:00:53.4]} 24. Bb6 {[%clk 0:01:00.5]} 24...
Rxa4 {[%clk 0:00:53.6]} 25. g3 {[%clk 0:00:57.6]} 25... Kf7 {[%clk 0:00:47.1]}
26. Rd1 {[%clk 0:00:51.6]} 26... Ra1 {[%clk 0:00:45.3]} 27. Rxa1 {[%clk
0:00:49.9]} 27... Bxa1 {[%clk 0:00:46.2]} 28. Kf1 {[%clk 0:00:47.3]} 28... Ke6
{[%clk 0:00:45.7]} 29. Ke2 {[%clk 0:00:34.8]} 29... Bd4 {[%clk 0:00:42.2]} 30.
h3 {[%clk 0:00:18.5]} 30... Kd5 {[%clk 0:00:41.6]} 31. Bd8 {[%clk 0:00:18]}
31... e6 {[%clk 0:00:42]} 32. Bg5 {[%clk 0:00:14.9]} 32... Kxc5 {[%clk
0:00:40.5]} 33. Be7+ {[%clk 0:00:14.5]} 33... Kd5 {[%clk 0:00:40.8]} 34. Bg5
{[%clk 0:00:15.4]} 34... Bc5 {[%clk 0:00:37]} 35. Bh6 {[%clk 0:00:15.6]} 35...
e5 {[%clk 0:00:36.9]} 36. Bg5 {[%clk 0:00:15.6]} 36... Bd6 {[%clk 0:00:33.9]}
37. h4 {[%clk 0:00:15]} 37... f4 {[%clk 0:00:33.5]} 38. gxf4 {[%clk 0:00:15.5]}
38... exf4 {[%clk 0:00:33.5]} 39. Bf6 {[%clk 0:00:15.7]} 39... Ke6 {[%clk
0:00:33.5]} 40. Bg5 {[%clk 0:00:15.6]} 40... Kf5 {[%clk 0:00:34]} 41. Bd8 {[%clk
0:00:14.9]} 41... Be5 {[%clk 0:00:33.9]} 42. h5 {[%clk 0:00:13.6]} 42... gxh5
{[%clk 0:00:33.5]} 43. Ba5 {[%clk 0:00:12.3]} 43... f3+ {[%clk 0:00:29.9]} 44.
Kf1 {[%clk 0:00:12.5]} 44... h4 {[%clk 0:00:22.9]} 45. Kg1 {[%clk 0:00:12.7]}
45... Kg4 {[%clk 0:00:23.6]} 46. Bd2 {[%clk 0:00:10.6]} 46... Bd4 {[%clk
0:00:23]} 47. Be1 {[%clk 0:00:06.8]} 47... h3 {[%clk 0:00:22.4]} 48. Kh2 {[%clk
0:00:06.4]} 48... Be5+ {[%clk 0:00:17.6]} 49. Kh1 {[%clk 0:00:06.6]} 49... h5
{[%clk 0:00:17.7]} 50. Bd2 {[%clk 0:00:06.7]} 50... Bf4 {[%clk 0:00:13]} 51. Be1
{[%clk 0:00:06.9]} 51... Bg3 {[%clk 0:00:13.6]} 52. Kg1 {[%clk 0:00:04.9]} 52...
e3 {[%clk 0:00:12.3]} 53. fxg3 {[%clk 0:00:03.6]} 53... h2+ {[%clk 0:00:09.4]}
54. Kxh2 {[%clk 0:00:02.4]} 54... f2 {[%clk 0:00:04.8]} 55. Bxf2 {[%clk
0:00:02.3]} 55... exf2 {[%clk 0:00:05.3]} 56. Kg2 {[%clk 0:00:03.2]} 56... f1=Q+
{[%clk 0:00:03.1]} 57. Kxf1 {[%clk 0:00:03.4]} 57... Kxg3 {[%clk 0:00:03.8]} 58.
Kg1 {[%clk 0:00:04.3]} 58... Kh3 {[%clk 0:00:04.3]} 59. Kh1 {[%clk 0:00:05.2]}
59... h4 {[%clk 0:00:04.7]} 60. Kg1 {[%clk 0:00:06.1]} 60... Kg3 {[%clk
0:00:05.6]} 61. Kh1 {[%clk 0:00:06.9]} 61... h3 {[%clk 0:00:06.5]} 62. Kg1
{[%clk 0:00:07.3]} 62... h2+ {[%clk 0:00:07.4]} 63. Kh1 {[%clk 0:00:07.7]} 63...
Kh3 {[%clk 0:00:05.3]} 1/2-1/2

[Event "*** Titled Tuesday Blitz"]
[Site "Chess.com"]
[Date "2021.03.30"]
[Round "2"]
[White "anon6121824"]
[Black "biostatistician"]
[Result "1/2-1/2"]
[WhiteElo "2799"]
[BlackElo "2542"]
[TimeControl "180+1"]
[EndTime "10:18:39 PDT"]
[Termination "Game drawn - insufficient material"]

1. e4 {[%clk 0:03:00.9]} 1... e6 {[%clk 0:02:59.6]} 2. d4 {[%clk 0:03:00.8]}
2... d5 {[%clk 0:03:00.5]} 3. Nc3 {[%clk 0:03:01.5]} 3... Nc6 {[%clk 0:03:01]}
4. e5 {[%clk 0:02:49.9]} 4... f6 {[%clk 0:03:01.1]} 5. Nf3 {[%clk 0:02:49.2]}
5... fxe5 {[%clk 0:03:00.2]} 6. dxe5 {[%clk 0:02:49.1]} 6... Nh6 {[%clk
0:02:46.1]} 7. Bd3 {[%clk 0:02:42.6]} 7... Nf7 {[%clk 0:02:45.4]} 8. Qe2 {[%clk
0:02:42.7]} 8... Nb4 {[%clk 0:02:30]} 9. O-O {[%clk 0:02:34.4]} 9... Nxd3 {[%clk
0:02:29.9]} 10. cxd3 {[%clk 0:02:35.3]} 10... c5 {[%clk 0:02:30]} 11. d4 {[%clk
0:02:34.9]} 11... Bd7 {[%clk 0:02:29]} 12. dxc5 {[%clk 0:02:33.7]} 12... Bxc5
{[%clk 0:02:23.8]} 13. Be3 {[%clk 0:02:31.5]} 13... Bxe3 {[%clk 0:02:15.6]} 14.
Qxe3 {[%clk 0:02:32.4]} 14... O-O {[%clk 0:02:16.4]} 15. Rad1 {[%clk 0:02:28.1]}
15... Qe7 {[%clk 0:02:14.1]} 16. Rfe1 {[%clk 0:02:25.3]} 16... Rfc8 {[%clk
0:02:13]} 17. h3 {[%clk 0:02:17.7]} 17... Rc4 {[%clk 0:02:07.2]} 18. Rd4 {[%clk
0:02:13.1]} 18... Qc5 {[%clk 0:01:52.6]} 19. Red1 {[%clk 0:02:11.1]} 19... Rxd4
{[%clk 0:01:51.1]} 20. Nxd4 {[%clk 0:02:09.3]} 20... Rf8 {[%clk 0:01:44.2]} 21.
Rc1 {[%clk 0:01:43.2]} 21... Qb6 {[%clk 0:01:39.3]} 22. Nce2 {[%clk 0:01:21.3]}
22... Nh6 {[%clk 0:01:29.7]} 23. b3 {[%clk 0:01:13.9]} 23... Bb5 {[%clk
0:01:15]} 24. Nf4 {[%clk 0:00:58.1]} 24... Re8 {[%clk 0:00:56.4]} 25. a4 {[%clk
0:00:54.2]} 25... Bd7 {[%clk 0:00:56.5]} 26. Nd3 {[%clk 0:00:51.8]} 26... Rc8
{[%clk 0:00:36.9]} 27. Rxc8+ {[%clk 0:00:40.9]} 27... Bxc8 {[%clk 0:00:37.8]}
28. b4 {[%clk 0:00:41.5]} 28... Bd7 {[%clk 0:00:36.1]} 29. a5 {[%clk 0:00:40.1]}
29... Qd8 {[%clk 0:00:29]} 30. Nc5 {[%clk 0:00:39.8]} 30... Qe7 {[%clk
0:00:23.8]} 31. Nxb7 {[%clk 0:00:37.8]} 31... Qxb4 {[%clk 0:00:22.8]} 32. Nd8
{[%clk 0:00:32.6]} 32... Qxa5 {[%clk 0:00:22.4]} 33. N8xe6 {[%clk 0:00:31.8]}
33... Bxe6 {[%clk 0:00:19.9]} 34. Nxe6 {[%clk 0:00:32.7]} 34... Nf5 {[%clk
0:00:20.5]} 35. Qf4 {[%clk 0:00:28.9]} 35... Qe1+ {[%clk 0:00:16.7]} 36. Kh2
{[%clk 0:00:28.4]} 36... Qe4 {[%clk 0:00:17.6]} 37. Qxe4 {[%clk 0:00:22.7]}
37... dxe4 {[%clk 0:00:18.5]} 38. Nc5 {[%clk 0:00:23.4]} 38... a5 {[%clk
0:00:16.7]} 39. Nxe4 {[%clk 0:00:18]} 39... a4 {[%clk 0:00:17]} 40. Nc3 {[%clk
0:00:17.5]} 40... a3 {[%clk 0:00:17.4]} 41. f4 {[%clk 0:00:17.2]} 41... Nd4
{[%clk 0:00:16.3]} 42. g4 {[%clk 0:00:16.1]} 42... Ne2 {[%clk 0:00:15.6]} 43.
Na2 {[%clk 0:00:14]} 43... Nxf4 {[%clk 0:00:15.8]} 44. Kg3 {[%clk 0:00:13.7]}
44... g5 {[%clk 0:00:16.4]} 45. h4 {[%clk 0:00:11.4]} 45... h6 {[%clk
0:00:16.8]} 46. hxg5 {[%clk 0:00:11.8]} 46... hxg5 {[%clk 0:00:17.7]} 47. Kf3
{[%clk 0:00:12.7]} 47... Kf7 {[%clk 0:00:18.1]} 48. Ke4 {[%clk 0:00:12.2]} 48...
Ke6 {[%clk 0:00:18.7]} 49. Nb4 {[%clk 0:00:09.1]} 49... Ng6 {[%clk 0:00:19.2]}
50. Nc2 {[%clk 0:00:07.1]} 50... a2 {[%clk 0:00:19.4]} 51. Nd4+ {[%clk
0:00:07.6]} 51... Kd7 {[%clk 0:00:18.6]} 52. Nb3 {[%clk 0:00:08.5]} 52... Ne7
{[%clk 0:00:17.5]} 53. Nc5+ {[%clk 0:00:07]} 53... Kc6 {[%clk 0:00:17.8]} 54.
Nb3 {[%clk 0:00:07.9]} 54... Kb5 {[%clk 0:00:16.5]} 55. Kd3 {[%clk 0:00:06.2]}
55... Kb4 {[%clk 0:00:14.9]} 56. Kc2 {[%clk 0:00:06.8]} 56... Kc4 {[%clk
0:00:13.1]} 57. Kb2 {[%clk 0:00:05.8]} 57... Kd5 {[%clk 0:00:13.7]} 58. Kxa2
{[%clk 0:00:05.2]} 58... Kxe5 {[%clk 0:00:14.3]} 59. Kb2 {[%clk 0:00:05.7]}
59... Kf4 {[%clk 0:00:14.6]} 60. Nd4 {[%clk 0:00:06.2]} 60... Kxg4 {[%clk
0:00:13.6]} 61. Ne6 {[%clk 0:00:06.2]} 61... Kf5 {[%clk 0:00:14]} 62. Nxg5
{[%clk 0:00:07.1]} 1/2-1/2

[Event "*** Titled Tuesday Blitz"]
[Site "Chess.com"]
[Date "2021.03.30"]
[Round "2"]
[White "Zmof"]
[Black "RobPeresian"]
[Result "0-1"]
[WhiteElo "2206"]
[BlackElo "2429"]
[TimeControl "180+1"]
[EndTime "10:18:47 PDT"]
[Termination "RobPeresian won by resignation"]

1. e4 {[%clk 0:03:00.9]} 1... c5 {[%clk 0:02:59.7]} 2. Nf3 {[%clk 0:03:00.3]}
2... d6 {[%clk 0:02:59.4]} 3. Bb5+ {[%clk 0:02:59.4]} 3... Bd7 {[%clk 0:02:59]}
4. Bxd7+ {[%clk 0:02:58.7]} 4... Qxd7 {[%clk 0:02:59.9]} 5. O-O {[%clk
0:02:58.5]} 5... Nc6 {[%clk 0:03:00.4]} 6. c3 {[%clk 0:02:58.2]} 6... d5 {[%clk
0:03:00.1]} 7. e5 {[%clk 0:02:48.6]} 7... e6 {[%clk 0:02:56.1]} 8. d4 {[%clk
0:02:48.3]} 8... Nge7 {[%clk 0:02:51.8]} 9. Be3 {[%clk 0:02:35.8]} 9... Ng6
{[%clk 0:02:31.8]} 10. Nbd2 {[%clk 0:02:33.3]} 10... cxd4 {[%clk 0:02:28.7]} 11.
cxd4 {[%clk 0:02:32.8]} 11... Be7 {[%clk 0:02:28]} 12. Rc1 {[%clk 0:02:32.1]}
12... O-O {[%clk 0:02:27.1]} 13. Qe2 {[%clk 0:02:32.2]} 13... f6 {[%clk
0:02:14.9]} 14. exf6 {[%clk 0:02:27.4]} 14... Bxf6 {[%clk 0:02:15.8]} 15. Nb3
{[%clk 0:02:25.4]} 15... b6 {[%clk 0:02:15.2]} 16. Qb5 {[%clk 0:02:09.9]} 16...
Rac8 {[%clk 0:02:14.1]} 17. Rc3 {[%clk 0:02:06.3]} 17... Rc7 {[%clk 0:02:11.1]}
18. Rfc1 {[%clk 0:02:05.2]} 18... Rfc8 {[%clk 0:02:11.2]} 19. a4 {[%clk
0:02:04.5]} 19... Qd6 {[%clk 0:01:52.3]} 20. g3 {[%clk 0:01:59.1]} 20... h6
{[%clk 0:01:39.4]} 21. h4 {[%clk 0:01:57.8]} 21... Nge7 {[%clk 0:01:07.7]} 22.
a5 {[%clk 0:01:57.4]} 22... Nxa5 {[%clk 0:01:03]} 23. Nxa5 {[%clk 0:01:57.3]}
23... Rxc3 {[%clk 0:00:58.2]} 24. Rxc3 {[%clk 0:01:57]} 24... Rxc3 {[%clk
0:00:57.3]} 25. bxc3 {[%clk 0:01:41]} 25... bxa5 {[%clk 0:00:56.9]} 26. Qxa5
{[%clk 0:01:41.5]} 26... Nc6 {[%clk 0:00:50.3]} 27. Qa6 {[%clk 0:01:38.1]} 27...
Qc7 {[%clk 0:00:50]} 28. Bf4 {[%clk 0:01:34.3]} 28... Qb6 {[%clk 0:00:49.5]} 29.
Qc8+ {[%clk 0:01:33.9]} 29... Kf7 {[%clk 0:00:48.2]} 30. Qd7+ {[%clk 0:01:30]}
30... Be7 {[%clk 0:00:48.4]} 31. Bd6 {[%clk 0:01:23.6]} 31... Qd8 {[%clk
0:00:43.7]} 32. Qxc6 {[%clk 0:01:17.1]} 32... Bxd6 {[%clk 0:00:40]} 33. h5
{[%clk 0:01:16.8]} 33... Qc7 {[%clk 0:00:38.6]} 34. Qa6 {[%clk 0:01:13.3]} 34...
Qb6 {[%clk 0:00:34.4]} 35. Qc8 {[%clk 0:01:09.5]} 35... Qb1+ {[%clk 0:00:34.1]}
36. Kg2 {[%clk 0:01:09.3]} 36... Qe4 {[%clk 0:00:33.4]} 37. Qd7+ {[%clk
0:01:08.7]} 37... Be7 {[%clk 0:00:31.4]} 38. Qxa7 {[%clk 0:01:09.1]} 38... Kf6
{[%clk 0:00:30.7]} 39. Qc7 {[%clk 0:01:08.3]} 39... Kf7 {[%clk 0:00:19]} 40. Qe5
{[%clk 0:00:56.6]} 40... Qxe5 {[%clk 0:00:16]} 41. Nxe5+ {[%clk 0:00:56.1]}
41... Kf6 {[%clk 0:00:16.9]} 42. f4 {[%clk 0:00:53]} 42... Ba3 {[%clk
0:00:14.3]} 43. c4 {[%clk 0:00:32.8]} 43... Bb2 {[%clk 0:00:10.2]} 44. cxd5
{[%clk 0:00:30.8]} 44... exd5 {[%clk 0:00:09.6]} 45. Nc6 {[%clk 0:00:24.9]}
45... Ke6 {[%clk 0:00:09.7]} 46. Kf3 {[%clk 0:00:24.4]} 46... Kd6 {[%clk
0:00:09.9]} 47. Nd8 {[%clk 0:00:18.8]} 47... Bxd4 {[%clk 0:00:09.6]} 48. Nf7+
{[%clk 0:00:18.7]} 48... Ke6 {[%clk 0:00:09.2]} 49. Nh8 {[%clk 0:00:17.8]} 49...
Bf6 {[%clk 0:00:07.4]} 50. g4 {[%clk 0:00:16.7]} 50... Kd6 {[%clk 0:00:06.7]}
51. Nf7+ {[%clk 0:00:15.5]} 51... Ke6 {[%clk 0:00:05.1]} 52. Nh8 {[%clk
0:00:14]} 52... Kd6 {[%clk 0:00:04.9]} 53. Ke3 {[%clk 0:00:14.4]} 53... Kc5
{[%clk 0:00:04.8]} 54. Kd3 {[%clk 0:00:14.2]} 54... d4 {[%clk 0:00:03.8]} 55.
Nf7 {[%clk 0:00:12.6]} 55... Kd5 {[%clk 0:00:04.3]} 56. g5 {[%clk 0:00:12.9]}
56... hxg5 {[%clk 0:00:04.7]} 57. fxg5 {[%clk 0:00:12.6]} 57... Be7 {[%clk
0:00:05]} 58. g6 {[%clk 0:00:08.6]} 58... Bf6 {[%clk 0:00:04.8]} 59. Nd8 {[%clk
0:00:04.5]} 59... Ke5 {[%clk 0:00:01.8]} 60. Nc6+ {[%clk 0:00:04.3]} 60... Kf5
{[%clk 0:00:02.2]} 61. Nxd4+ {[%clk 0:00:01.9]} 61... Bxd4 {[%clk 0:00:02]} 62.
Kxd4 {[%clk 0:00:02.5]} 62... Kg5 {[%clk 0:00:02.6]} 63. h6 {[%clk 0:00:01.9]}
63... Kxh6 {[%clk 0:00:02.8]} 64. Ke4 {[%clk 0:00:01.5]} 64... Kxg6 {[%clk
0:00:03.4]} 65. Kf4 {[%clk 0:00:01.8]} 65... Kh5 {[%clk 0:00:04]} 66. Kg3 {[%clk
0:00:01.1]} 66... Kg5 {[%clk 0:00:04.6]} 67. Kf3 {[%clk 0:00:01.6]} 67... Kh4
{[%clk 0:00:04.8]} 0-1

[Event "*** Titled Tuesday Blitz"]
[Site "Chess.com"]
[Date "2021.03.30"]
[Round "2"]
[White "GAusal"]
[Black "Tenamu"]
[Result "0-1"]
[WhiteElo "2046"]
[BlackElo "2394"]
[TimeControl "180+1"]
[EndTime "10:18:49 PDT"]
[Termination "Tenamu won on time"]

1. e4 {[%clk 0:03:00.9]} 1... e6 {[%clk 0:02:54.6]} 2. Nc3 {[%clk 0:02:58.7]}
2... d5 {[%clk 0:02:53.4]} 3. d4 {[%clk 0:02:53.5]} 3... Nf6 {[%clk 0:02:52.1]}
4. Bg5 {[%clk 0:02:42.9]} 4... Bb4 {[%clk 0:02:48.6]} 5. e5 {[%clk 0:02:39.1]}
5... h6 {[%clk 0:02:46.9]} 6. exf6 {[%clk 0:02:32]} 6... hxg5 {[%clk 0:02:45.9]}
7. fxg7 {[%clk 0:02:28.3]} 7... Rg8 {[%clk 0:02:44.9]} 8. a3 {[%clk 0:02:22.6]}
8... Bxc3+ {[%clk 0:02:34.8]} 9. bxc3 {[%clk 0:02:21.5]} 9... Rxg7 {[%clk
0:02:35.7]} 10. Nf3 {[%clk 0:02:15.3]} 10... Nd7 {[%clk 0:02:25.8]} 11. c4
{[%clk 0:02:10]} 11... c6 {[%clk 0:02:20.5]} 12. h3 {[%clk 0:02:05.8]} 12... b6
{[%clk 0:02:15.2]} 13. cxd5 {[%clk 0:02:02.5]} 13... cxd5 {[%clk 0:02:14.8]} 14.
Bb5 {[%clk 0:01:57.9]} 14... a6 {[%clk 0:01:58.6]} 15. Bxd7+ {[%clk 0:01:52.9]}
15... Bxd7 {[%clk 0:01:59.5]} 16. Ne5 {[%clk 0:01:47.6]} 16... Bb5 {[%clk
0:01:48.8]} 17. a4 {[%clk 0:01:41.7]} 17... Bc4 {[%clk 0:01:48.3]} 18. Qh5
{[%clk 0:01:30.6]} 18... Qe7 {[%clk 0:00:27]} 19. Qh8+ {[%clk 0:01:23.6]} 19...
Qf8 {[%clk 0:00:24.8]} 20. Qxf8+ {[%clk 0:01:14]} 20... Kxf8 {[%clk 0:00:25.7]}
21. Nd7+ {[%clk 0:01:07.9]} 21... Ke7 {[%clk 0:00:22]} 22. Nxb6 {[%clk
0:01:05.5]} 22... Rb8 {[%clk 0:00:21.8]} 23. Nxc4 {[%clk 0:01:04.6]} 23... dxc4
{[%clk 0:00:22.7]} 24. Kd2 {[%clk 0:01:04.3]} 24... g4 {[%clk 0:00:20.4]} 25. h4
{[%clk 0:01:03.3]} 25... g3 {[%clk 0:00:20.2]} 26. f3 {[%clk 0:01:03.1]} 26...
Kd6 {[%clk 0:00:20]} 27. Rab1 {[%clk 0:01:01.3]} 27... Rxb1 {[%clk 0:00:13.3]}
28. Rxb1 {[%clk 0:01:00.2]} 28... Kd5 {[%clk 0:00:13.9]} 29. c3 {[%clk
0:00:59.9]} 29... Rh7 {[%clk 0:00:13.6]} 30. Rh1 {[%clk 0:00:58.6]} 30... f5
{[%clk 0:00:13.9]} 31. Ke3 {[%clk 0:00:58.1]} 31... e5 {[%clk 0:00:11.3]} 32.
dxe5 {[%clk 0:00:55.6]} 32... Kxe5 {[%clk 0:00:12.2]} 33. f4+ {[%clk 0:00:53.8]}
33... Kf6 {[%clk 0:00:10]} 34. Kf3 {[%clk 0:00:52.5]} 34... Rd7 {[%clk
0:00:09.4]} 35. Kxg3 {[%clk 0:00:51.1]} 35... Rd3+ {[%clk 0:00:08.7]} 36. Kf2
{[%clk 0:00:50]} 36... Rxc3 {[%clk 0:00:09]} 37. h5 {[%clk 0:00:50.3]} 37... Kg7
{[%clk 0:00:04.8]} 38. h6+ {[%clk 0:00:50.2]} 38... Kh7 {[%clk 0:00:05.2]} 39.
Rh5 {[%clk 0:00:49.4]} 39... Rc2+ {[%clk 0:00:05.4]} 40. Kf3 {[%clk 0:00:48.5]}
40... Rc3+ {[%clk 0:00:05.8]} 41. Kf2 {[%clk 0:00:48.1]} 41... Rc2+ {[%clk
0:00:06.2]} 42. Kg3 {[%clk 0:00:45.1]} 42... c3 {[%clk 0:00:04.4]} 43. Kh2
{[%clk 0:00:46]} 43... Ra2 {[%clk 0:00:02.9]} 44. Rxf5 {[%clk 0:00:45.6]} 44...
c2 {[%clk 0:00:03.6]} 45. Rc5 {[%clk 0:00:44.3]} 45... Kxh6 {[%clk 0:00:04.5]}
46. Kg3 {[%clk 0:00:40.4]} 46... Kg6 {[%clk 0:00:04.4]} 47. Kg4 {[%clk
0:00:40.4]} 47... Kf6 {[%clk 0:00:04.7]} 48. g3 {[%clk 0:00:40.5]} 48... a5
{[%clk 0:00:05.1]} 49. Rc6+ {[%clk 0:00:36.3]} 49... Ke7 {[%clk 0:00:05.4]} 50.
Kf5 {[%clk 0:00:34.9]} 50... Kd7 {[%clk 0:00:06.3]} 51. Rc3 {[%clk 0:00:34.2]}
51... Kd6 {[%clk 0:00:04.5]} 52. g4 {[%clk 0:00:34.3]} 52... Kd5 {[%clk
0:00:04.9]} 53. g5 {[%clk 0:00:33.8]} 53... Kd4 {[%clk 0:00:05.4]} 54. Rc8
{[%clk 0:00:33.7]} 54... Kd3 {[%clk 0:00:04.7]} 55. Kf6 {[%clk 0:00:33.6]} 55...
Rxa4 {[%clk 0:00:04.6]} 56. Rxc2 {[%clk 0:00:10]} 56... Kxc2 {[%clk 0:00:05.5]}
57. f5 {[%clk 0:00:09.4]} 57... Rg4 {[%clk 0:00:05.6]} 58. g6 {[%clk 0:00:09.5]}
58... a4 {[%clk 0:00:06.5]} 59. Kf7 {[%clk 0:00:09.9]} 59... a3 {[%clk
0:00:07.4]} 60. f6 {[%clk 0:00:10.1]} 60... a2 {[%clk 0:00:08]} 61. g7 {[%clk
0:00:07.7]} 61... a1=Q {[%clk 0:00:08.9]} 62. Ke7 {[%clk 0:00:03.5]} 62... Rxg7+
{[%clk 0:00:09.4]} 63. fxg7 {[%clk 0:00:01.4]} 63... Qxg7+ {[%clk 0:00:10.3]}
0-1